{"text_format":"3","workbook":"xlsx","n_sheets":1,"sheets":["Exhibit A"],"not_rendered":{"defined_names":2},"read":"whole","date_system":"1900"}

{"sheet":"Exhibit A","index":0,"n_rows":169,"n_cols":11,"rows_kept":169,"merged":[[0,0,0,10],[1,0,1,10],[2,0,2,10],[3,1,3,4],[4,0,4,4],[6,0,6,4],[7,0,7,4],[8,0,8,4],[9,0,9,4],[10,0,10,4],[11,0,11,4],[12,0,12,4],[13,0,13,4],[14,0,14,4],[17,0,17,4],[18,0,18,4],[19,0,19,4],[20,0,20,4],[21,0,21,4],[22,0,22,4],[23,0,23,4],[24,0,24,4],[25,0,25,4],[26,0,26,4],[27,0,27,4],[28,0,28,4],[29,0,29,4],[32,0,32,4],[33,0,33,4],[34,0,34,4],[35,0,35,4],[36,0,36,4],[37,0,37,4],[38,0,38,4],[39,0,39,4],[40,0,40,4],[43,0,43,4],[44,0,44,4],[45,0,45,4],[46,0,46,4],[47,0,47,4],[48,0,48,4],[49,0,49,4],[50,0,50,4],[51,0,51,4],[52,0,52,4],[53,0,53,4],[54,0,54,4],[55,0,55,4],[56,0,56,4],[57,0,57,4],[58,0,58,4],[61,0,61,4],[62,0,62,4],[63,0,63,4],[64,0,64,4],[65,0,65,4],[66,0,66,4],[67,0,67,4],[68,0,68,4],[69,0,69,4],[72,0,72,4],[73,0,73,4],[74,0,74,4],[75,0,75,4],[76,0,76,4],[77,0,77,4],[78,0,78,4],[79,0,79,4],[80,0,80,4],[81,0,81,4],[82,0,82,4],[83,0,83,4],[86,0,86,4],[87,0,87,4],[88,0,88,4],[89,0,89,4],[90,0,90,4],[91,0,91,4],[92,0,92,4],[93,0,93,4],[94,0,94,4],[95,0,95,4],[96,0,96,4],[97,0,97,4],[98,0,98,4],[99,0,99,4],[100,0,100,4],[101,0,101,4],[102,0,102,4],[103,0,103,4],[104,0,104,4],[105,0,105,4],[106,0,106,4],[107,0,107,4],[108,0,108,4],[109,0,109,4],[110,0,110,4],[111,0,111,4],[112,0,112,4],[115,0,115,4],[116,0,116,4],[117,0,117,4],[120,0,120,4],[121,0,121,4],[122,0,122,4],[123,0,123,4],[124,0,124,4],[125,0,125,4],[126,0,126,4],[127,0,127,4],[128,0,128,4],[129,0,129,4],[130,0,130,4],[131,0,131,4],[132,0,132,4],[133,0,133,4],[134,0,134,4],[135,0,135,4],[136,0,136,4],[137,0,137,4],[138,0,138,4],[139,0,139,4],[140,0,140,4],[141,0,141,4],[142,0,142,4],[143,0,143,4],[146,0,146,4],[147,0,147,4],[150,0,150,4],[151,0,151,4],[152,0,152,4],[153,0,153,4],[158,1,158,7],[160,2,160,7],[161,2,161,7],[162,2,162,7],[163,2,163,7],[164,2,164,7],[165,2,165,7],[167,2,167,3],[168,2,168,3]]}
["Exhibit A - Request for Quote - Musical Instruments 2023-2024"]
["RFQ0323MUSINST"]
[]
["Vendor:"]
["Instructions: Complete all yellow fields",{"$nulls":4},"Current-Model Substitutions Only","Unit Price","Delivery/\nShipping Cost","Subtotal","Estimated Delivery/\nShipping Timeline","\"Drop-shipped\" - No service/ support included in quoted price"]
["BRASS INSTRUMENTS - MIDDLE SCHOOL (Playtest, adjustment and case must be included in bid for all brass instruments)"]
["Trumpet - Yamaha YTR-2330",{"$nulls":7},{"$f":"IF(SUM(G7:H7)=0,\" \",SUM(G7:H7))","v":" "}]
["Tenor Trombone - Yamaha YSL-354",{"$nulls":7},{"$f":"IF(SUM(G8:H8)=0,\" \",SUM(G8:H8))","v":" "}]
["Bass Trombone - Getzen 1052FDR",{"$nulls":7}," "]
["Double French Horn - Holton H379 (Holton H378 is an acceptable substitute)",{"$nulls":7}," "]
["Double French Horn - Yamaha YHR-567 (Lacquer Finish)",{"$nulls":7}," "]
["Euphonium (3-Valve) - Jupiter JEP700",{"$nulls":7}," "]
["Tuba (3/4 Size) - Yamaha YBB-105WC",{"$nulls":7}," "]
["Concert Tuba (3-Valve) - Yamaha YBB-201WC (Lacquer Finish)",{"$nulls":7}," "]
["Concert Baritone (3-Valve) - King 625 (Lacquer Finish)",{"$nulls":7}," "]
[{"$nulls":7},"Subtotal",{"$f":"IF(SUM(I7:I15)=0,\" \",SUM(I7:I15))","v":" "}]
["BRASS INSTRUMENTS - HIGH SCHOOL (Playtest, adjustment and case must be included in bid for all brass instruments)"]
["Trumpet - Yamaha YTR-4335GII",{"$nulls":7},{"$f":"IF(SUM(G18:H18)=0,\" \",SUM(G18:H18))","v":" "}]
["Flugelhorn - Yamaha YFH-631G",{"$nulls":7},{"$f":"IF(SUM(G19:H19)=0,\" \",SUM(G19:H19))","v":" "}]
["Cornet - Bach Stradivarius 184ML (Lacquer Finish)",{"$nulls":7}," "]
["Tenor Trombone - Yamaha YSL-620",{"$nulls":7}," "]
["Tenor Trombone - Yamaha YSL-640",{"$nulls":7}," "]
["Bass Trombone - Getzen 1062FD",{"$nulls":7}," "]
["Double French Horn - C.G. Conn 8D",{"$nulls":7}," "]
["Double French Horn - Yamaha YHR-671",{"$nulls":7}," "]
["Euphonium - Yamaha YEP-321",{"$nulls":7}," "]
["Euphonium - Besson Prodige BE165-1-0 (with Case)",{"$nulls":7}," "]
["Euphonium - Besson Prestige BE2052-1G-0 (with Case) ",{"$nulls":7}," "]
["Tuba (4-Valve; B-Flat) - Miraphone 187 Series (with Case)",{"$nulls":7}," "]
["Concert Tuba - Yamaha YBB-321 (with Case)",{"$nulls":7}," "]
[{"$nulls":7},"Subtotal",{"$f":"IF(SUM(I18:I30)=0,\" \",SUM(I18:I30))","v":" "}]
["WOODWIND INSRUMENTS - MIDDLE SCHOOL (Playtest, adjustment and case must be included in bid for all woodwind instruments)"]
["Piccolo - Gemeinhardt 4P",{"$nulls":7},{"$f":"IF(SUM(G33:H33)=0,\" \",SUM(G33:H33))","v":" "}]
["Flute - Yamaha YFL-222",{"$nulls":7},{"$f":"IF(SUM(G34:H34)=0,\" \",SUM(G34:H34))","v":" "}]
["Clarinet (B-Flat) - Yamaha YCL-255",{"$nulls":7}," "]
["Bass Clarinet - Selmer 1430LP",{"$nulls":7}," "]
["Oboe - Yamaha YOB-241",{"$nulls":7}," "]
["Bassoon - Fox Renard 222",{"$nulls":7}," "]
["Alto Saxophone - Yamaha YAS-26",{"$nulls":7}," "]
["Tenor Saxophone - Yamaha YTS-26 (Lacquer Finish)",{"$nulls":7}," "]
["Baritone Saxophone - Yamaha YBS-480 (Lacquer Finish with Low A)",{"$nulls":7}," "]
[{"$nulls":7},"Subtotal",{"$f":"IF(SUM(I33:I41)=0,\" \",SUM(I33:I41))","v":" "}]
["WOODWIND INSRUMENTS - HIGH SCHOOL (Playtest, adjustment and case must be included in bid for all woodwind instruments)"]
["Piccolo - Yamaha YPC-62 (Traditional headjoint)",{"$nulls":7},{"$f":"IF(SUM(G44:H44)=0,\" \",SUM(G44:H44))","v":" "}]
["Flute - Conn-Selmer SFL301",{"$nulls":7},{"$f":"IF(SUM(G45:H45)=0,\" \",SUM(G45:H45))","v":" "}]
["Clarinet (B-Flat) - Buffet Crampon E11 BC2501-2",{"$nulls":7}," "]
["Bass Clarinet - Yamaha YCL-221II",{"$nulls":7}," "]
["Bass Clarinet - Leblanc L60",{"$nulls":7}," "]
["Soprano Clarinet (E-Flat) - Buffet Crampon E11 BC2301-2-0",{"$nulls":7}," "]
["Oboe - Yamaha YOB-441",{"$nulls":7}," "]
["Oboe - Selmer 121",{"$nulls":7}," "]
["English Horn - Fox 510",{"$nulls":7}," "]
["Bassoon - Fox Renard 220",{"$nulls":7}," "]
["Soprano Saxophone - Yamaha YSS-475II",{"$nulls":7}," "]
["Alto Saxophone - Yamaha YAS-480",{"$nulls":7}," "]
["Tenor Saxophone - Yamaha YTS-480",{"$nulls":7}," "]
["Tenor Saxophone - Selmer STS411",{"$nulls":7}," "]
["Baritone Saxophone - Selmer SBS411",{"$nulls":7}," "]
["Baritone Saxophone - Yamaha YBS-62",{"$nulls":7}," "]
[{"$nulls":7},"Subtotal",{"$f":"IF(SUM(I44:I59)=0,\" \",SUM(I44:I59))","v":" "}]
["PERCUSSION INSTRUMENTS - MIDDLE SCHOOL"]
["Concert Bass Drum (36\" x 22\") - Yamaha CB-9036 (with tiltable stand and cover)",{"$nulls":7},{"$f":"IF(SUM(G62:H62)=0,\" \",SUM(G62:H62))","v":" "}]
["Drum Set (5-Piece) - Yamaha Stage Custom Birch SBP2F50, Raven Black (shell pack with 22\" bass drum) - Other colors are acceptable substitutes",{"$nulls":7},{"$f":"IF(SUM(G63:H63)=0,\" \",SUM(G63:H63))","v":" "}]
["Gong - 40\" Paiste Symphonic SG15040 (not including stand)",{"$nulls":7}," "]
["Timpani Set (23/26/29/32) - Yamaha Standard Series TP-4300R",{"$nulls":7}," "]
["4.3 Octave Marimba  - Yamaha Acoustalon YM-2400C (with drop cover)",{"$nulls":7}," "]
["3.0 Octave Vibraphone - Marimba One 9002 One Vibe (with motor)",{"$nulls":7}," "]
["3.5 Octave Xylophone - Yamaha Acoustalon YX-500FC (with drop cover)",{"$nulls":7}," "]
["Orchestra Bells (Silver) - Musser M645",{"$nulls":7}," "]
["1.5 Symphonic Chimes (1.5\" diameter) - Musser M661C (Chrome Finish)",{"$nulls":7}," "]
[{"$nulls":7},"Subtotal",{"$f":"IF(SUM(I62:I70)=0,\" \",SUM(I62:I70))","v":" "}]
["PERCUSSION INSTRUMENTS - HIGH SCHOOL"]
["Concert Bass Drum (36\" x 22\") - Yamaha CB-9036 (with tiltable stand and cover)",{"$nulls":7},{"$f":"IF(SUM(G73:H73)=0,\" \",SUM(G73:H73))","v":" "}]
["13-Note Crotale Set (High Octave) - Sabian 50403H (with mounting bar)",{"$nulls":7},{"$f":"IF(SUM(G74:H74)=0,\" \",SUM(G74:H74))","v":" "}]
["13-Note Crotale Set (Low Octave) - Sabian 50403L (with mounting bar)",{"$nulls":7}," "]
["Gong - 40\" Paiste Symphonic SG15040 (with stand)",{"$nulls":7}," "]
["Timpani Set (23/26/29/32) - Yamaha TP6304CL",{"$nulls":7}," "]
["5.0 Octave Marimba - Marimba One Izzy 9501 (with Classic resonators and Traditional keyboard)",{"$nulls":7}," "]
["4.6 Octave Marimba - Adams MAHF46 (with Rosewood Keys and Endurance Field Frame)",{"$nulls":7}," "]
["3.0 Octave Vibraphone - Adams Concert VCSF30M (with Motor and Endurance Field Frame)",{"$nulls":7}," "]
["3.5 Octave Xylophone - Yamaha Acoustalon YXRD-500FC (on Multi-Frame II with Cover)",{"$nulls":7}," "]
["3.3 Octave Orchestra Bells - Yamaha Artist YGRD-2500C (on Multi-Frame II with Cover)",{"$nulls":7}," "]
["3.3 Octave Orchestra Bells - Adams Artist Series GAF33 (with Field Frame)",{"$nulls":7}," "]
["1.5 Octave Symphonic Chimes (1.5\" diameter) - Musser M661C (Chrome Finish)",{"$nulls":7}," "]
[{"$nulls":7},"Subtotal",{"$f":"IF(SUM(I73:I84)=0,\" \",SUM(I73:I84))","v":" "}]
["STRING INSTRUMENTS (Setup, adjustment, case and bow must be included in the cost of the bid for all strings instruments. No perfection pegs.)"]
["Violin Outfit (1/8 Size) - Knilling Sebastian 110VN18 (hard case and horsehair, Glasser fiberglass bow)",{"$nulls":7},{"$f":"IF(SUM(G87:H87)=0,\" \",SUM(G87:H87))","v":" "}]
["Violin Outfit (1/8 Size) - Knilling Bucharest 4KE1AA (hard case and horsehair, Glasser fiberglass bow)",{"$nulls":7},{"$f":"IF(SUM(G88:H88)=0,\" \",SUM(G88:H88))","v":" "}]
["Violin Outfit (1/4 Size) - Knilling Bucharest 4KQ-1 (hard case and horsehair, Glasser fiberglass bow)",{"$nulls":7},{"$f":"IF(SUM(G89:H89)=0,\" \",SUM(G89:H89))","v":" "}]
["Violin Outfit (1/2 Size) - Knilling Bucharest 4KH-1 (hard case and horsehair, Glasser fiberglass bow)",{"$nulls":7}," "]
["Violin Outfit (3/4 Size) - Knilling Bucharest 4KT-1 (hard case and horsehair, Glasser fiberglass bow)",{"$nulls":7}," "]
["Violin Outfit (4/4 Size) - Knilling Bucharest 4KF-1 (hard case and horsehair, Glasser fiberglass bow)",{"$nulls":7}," "]
["Violin Outfit (4/4 Size) - Krutz Series 400 V440 (hard case and horsehair, wooden bow)",{"$nulls":7}," "]
["Viola Outfit (12\") - Knilling Sebastian 110VA2 (hard case and horsehair, Glasser fiberglass bow)",{"$nulls":7}," "]
["Viola Outfit (12\") - Knilling Bucharest 3105 (hard case and horsehair, Glasser fiberglass bow)",{"$nulls":7}," "]
["Viola Outfit (13\") - Knilling Bucharest 3105T-1 (hard case and horsehair, Glasser fiberglass bow)",{"$nulls":7}," "]
["Viola Outfit (14\") - Knilling Bucharest 3105F-1 (hard case and horsehair, Glasser fiberglass bow)",{"$nulls":7}," "]
["Viola Outfit (15\") - Knilling Bucharest 3105FF-1 (hard case and horsehair, Glasser fiberglass bow)",{"$nulls":7}," "]
["Viola Outfit (16\") - Knilling Bucharest 3105S-1 (hard case and horsehair, Glasser fiberglass bow)",{"$nulls":7}," "]
["Viola Outfit (16\") - Krutz Series 400 A640 (hard case and horsehair, wooden bow)",{"$nulls":7}," "]
["Cello Outfit (1/4 Size) - Scherl & Roth SR55E1H (Cordura-type bag and horsehair, Glasser fiberglass bow)",{"$nulls":7}," "]
["Cello Outfit (1/2 Size) - Scherl & Roth SR55E2H (Cordura-type bag and horsehair, Glasser fiberglass bow)",{"$nulls":7}," "]
["Cello Outfit (3/4 Size) - Scherl & Roth SR55E3H (Cordura-type bag and horsehair, Glasser fiberglass bow)",{"$nulls":7}," "]
["Cello Outfit (4/4 Size) - Scherl & Roth SR55E4H (Cordura-type bag and horsehair, Glasser fiberglass bow)",{"$nulls":7}," "]
["Cello Outfit (3/4 Size) - Krutz 300 Series C330 (Cordura-type bag and horsehair, wooden bow)",{"$nulls":7}," "]
["Cello Outfit (4/4 Size) - Krutz 400 Series C440 (Cordura-type bag and horsehair, wooden bow)",{"$nulls":7}," "]
["Bass Outfit (1/8 Size) - Krutz 100 Series B810 (Cordura-type bag and horsehair, French-style, wooden bow)",{"$nulls":7},{"$f":"IF(SUM(G107:H107)=0,\" \",SUM(G107:H107))","v":" "}]
["Bass Outfit (1/4 Size) - Scherl & Roth SR57E1CFH (Cordura-type bag and horsehair, Glasser fiberglass bow)",{"$nulls":7}," "]
["Bass Outfit (1/2 Size) - Scherl & Roth SR57E2CFH (Cordura-type bag and horsehair, Glasser fiberglass bow)",{"$nulls":7}," "]
["Bass Outfit (3/4 Size) - Scherl & Roth SR57E3CFH (Cordura-type bag and horsehair, Glasser fiberglass bow)",{"$nulls":7}," "]
["Bass Outfit (1/2 Size) - Krutz Series 300 B230 (Cordura-type bag and horsehair, French-style, wooden bow)",{"$nulls":7}," "]
["Bass Outfit (3/4 Size) - Krutz Series 300 B330 (Cordura-type bag and horsehair, French-style, wooden bow)",{"$nulls":7}," "]
["Bass Outfit (3/4 Size) - Krutz Series 300 B330X with Gated C Extension (Cordura-type bag and horsehair, French-style, wooden bow)",{"$nulls":7}," "]
[{"$nulls":7},"Subtotal",{"$f":"IF(SUM(I87:I113)=0,\" \",SUM(I87:I113))","v":" "}]
["GUITARS"]
["Steel String Guitar - Fender Dreadnought CD-60S",{"$nulls":7},{"$f":"IF(SUM(G116:H116)=0,\" \",SUM(G116:H116))","v":" "}]
["Steel String Guitar - Fender Concert Body CC-60S",{"$nulls":7},{"$f":"IF(SUM(G117:H117)=0,\" \",SUM(G117:H117))","v":" "}]
["Classical Guitar - Yamaha CG122MCH (Yamaha CG122MSH is an acceptable substitute)",{"$nulls":7},{"$f":"IF(SUM(G118:H118)=0,\" \",SUM(G118:H118))","v":" "}]
[{"$nulls":7},"Subtotal",{"$f":"IF(SUM(I116:I118)=0,\" \",SUM(I116:I118))","v":" "}]
["ELEMENTARY INSTRUMENTS"]
["Soprano Glockenspiel - Sonor SG 19",{"$nulls":7},{"$f":"IF(SUM(G121:H121)=0,\" \",SUM(G121:H121))","v":" "}]
["Soprano Glockenspiel - Studio 49 SGd (diatonic)",{"$nulls":7},{"$f":"IF(SUM(G122:H122)=0,\" \",SUM(G122:H122))","v":" "}]
["Alto Glockenspiel - Studio 49 AGd (diatonic)",{"$nulls":7}," "]
["Tenor Alto Glockenspiel - Sonor TAG 19",{"$nulls":7}," "]
["Soprano Metallophone - Sonor SKM 10",{"$nulls":7}," "]
["Soprano Metallophone - Studio 49 SM 1600 Series",{"$nulls":7}," "]
["Bass Metallophone - Sonor GBKM 10",{"$nulls":7}," "]
["Bass Metallophone - Studio 49 BM 1600 Series",{"$nulls":7}," "]
["Soprano Xylophone - Sonor SKX 10",{"$nulls":7}," "]
["Soprano Xylophone - Studio 49 SX 1600 Series",{"$nulls":7}," "]
["Alto Xylophone - Studio 49 AX 1600 Series",{"$nulls":7}," "]
["Tenor Alto Xylophone - Sonor TAKX 10",{"$nulls":7}," "]
["Bass Xylophone - Sonor GBKX 10",{"$nulls":7}," "]
["Bass Xylophone - Studio 49 BX 1600 Series",{"$nulls":7}," "]
["Contrabass Resonator Bar (C) - Studio 49 2000 KB/KBX 1",{"$nulls":7}," "]
["Contrabass Resonator Bar (E) - Studio 49 2000 KB/KBX 5",{"$nulls":7}," "]
["Contrabass Resonator Bar (F) - Studio 49 2000 KB/KBX 6",{"$nulls":7}," "]
["Contrabass Resonator Bar (G) - Studio 49 2000 KB/KBX 8",{"$nulls":7}," "]
["Tables/Stands - Basic Beat BBRTTS Orff Table Stand",{"$nulls":7}," "]
["Tables/Stands - Basic Beat BBV567 Rolling Orff Stand",{"$nulls":7}," "]
["Tunable Tubano (10\") - Remo Valencia 100 Series (finish - no preference)",{"$nulls":7}," "]
["Tunable Tubano (12\") - Remo Valencia 100 Series (finish - no preference)",{"$nulls":7}," "]
["Tunable Tubano (14\") - Remo Valencia 100 Series (finish - no preference)",{"$nulls":7}," "]
["Soprano Ukulele - Kala Makala MK-S",{"$nulls":7}," "]
[{"$nulls":7},"Subtotal",{"$f":"IF(SUM(I121:I144)=0,\" \",SUM(I121:I144))","v":" "}]
["PIANOS"]
["Digital Piano - Roland HP702 (with dolly)",{"$nulls":7},{"$f":"IF(SUM(G147:H147)=0,\" \",SUM(G147:H147))","v":" "}]
["Digital Piano - Yamaha P-45 (with power supply and sustain pedal)",{"$nulls":7},{"$f":"IF(SUM(G148:H148)=0,\" \",SUM(G148:H148))","v":" "}]
[{"$nulls":7},"Subtotal",{"$f":"IF(SUM(I147:I148)=0,\" \",SUM(I147:I148))","v":" "}]
["EQUIPMENT"]
["Metronome - Digimet II",{"$nulls":7},{"$f":"IF(SUM(G151:H151)=0,\" \",SUM(G151:H151))","v":" "}]
["Harmony Director - Yamaha HD-300",{"$nulls":7},{"$f":"IF(SUM(G152:H152)=0,\" \",SUM(G152:H152))","v":" "}]
["Tuner - Peterson Node 8001",{"$nulls":7},{"$f":"IF(SUM(G153:H153)=0,\" \",SUM(G153:H153))","v":" "}]
["Metronome - Boss Dr. Beat DB-90",{"$nulls":7},{"$f":"IF(SUM(G154:H154)=0,\" \",SUM(G154:H154))","v":" "}]
[{"$nulls":7},"Subtotal",{"$f":"IF(SUM(I151:I154)=0,\" \",SUM(I151:I154))","v":" "}]
[]
[{"$nulls":7},"Total",{"$f":"IF(SUM(I16,I31,I42,I60,I71,I85,I114,I119,I145,I149,I155)=0,\" \",SUM(I16,I31,I42,I60,I71,I85,I114,I119,I145,I149,I155))","v":" "}]
[]
[null,"The Proposer hereby declares understanding, agreement and certification of compliance to provide the items and/or services, at the prices quoted, in accordance with all terms and conditions, requirements and specifications of the original Request for Quote (RFQ) and as modified by any addenda thereto."]
[]
[null,"Company Name:"]
[null,"Address:"]
[null,"Contact:"]
[null,"Title:"]
[null,"Phone:"]
[null,"Email:"]
[]
[]
[null,null,"Printed Name",null,null,"Signature of Officer",null,"Date"]